bitfinex-derivatives/quotes_ETHF0:USTF0_20250329
["timestamp","ask_amount","ask_price","bid_price","bid_amount"]
[1743279113210,0.7289,1823.1,1822.7,6.9218]
[1743279113414,3.24678,1823.1,1822.9,4.30535]
[1743279113810,3.24678,1823.1,1823.0,2.4664]
[1743279114011,3.24678,1823.1,1823.0,1.3689]
[1743279114317,1.4204,1823.1,1823.0,2.4664]
[1743279114507,2.51784,1823.1,1823.0,1.3689]
[1743279114707,2.51784,1823.1,1823.0,2.4664]
[1743279114913,2.51784,1823.1,1823.0,1.3689]
[1743279115810,1.09756,1822.9,1822.8,3.716]
[1743279116017,1.09756,1822.9,1822.4,0.5488]
[1743279116018,2.2105,1823.0,1822.6,3.716]
[1743279116219,1.4769,1822.9,1822.7,2.58946]
[1743279116512,2.57451,1822.9,1822.7,2.58946]
[1743279116717,1.09763,1822.8,1822.7,2.58946]
[1743279116919,2.57453,1822.8,1822.7,1.4918]
[1743279118320,1.09769,1822.7,1822.6,4.8137]
[1743279118523,2.55409,1822.7,1822.6,6.2601]
[1743279119022,1.09787,1822.4,1822.3,3.2078]
[1743279119616,1.4564,1822.5,1822.2,3.723]
[1743279119820,1.09793,1822.3,1822.2,5.1694]
[1743279120117,1.09791,1822.4,1822.2,6.26739]
[1743279120319,1.09791,1822.4,1822.3,1.4464]
[1743279121015,1.09799,1822.2,1822.1,0.734]
[1743279121216,1.09805,1822.1,1822.0,5.88024448]
[1743279121524,1.09805,1822.1,1822.0,0.00824448]
[1743279121525,2.55445,1822.1,1822.0,0.00824448]
[1743279122015,3.9564,1822.1,1821.8,3.2078]
[1743279122218,1.09863,1821.2,1820.9,3.2078]
[1743279122522,2.57537,1821.1,1820.8,2.54358]
[1743279122719,4.6845,1821.1,1820.7,12.27607326]
[1743279123024,1.09878,1820.9,1820.7,3.9633]
[1743279123227,1.0988,1820.9,1820.7,5.41634448]
[1743279123519,4.69274448,1821.1,1820.7,5.41634448]
[1743279123520,2.57553,1820.8,1820.7,4.66084448]
[1743279123933,2.57553,1820.8,1820.7,0.00824448]
[1743279123934,5.78333,1820.8,1820.7,0.00824448]
[1743279125332,8.4445,1820.8,1820.2,1.85116]
[1743279125639,3.2078,1820.6,1820.3,1.435]
[1743279125934,1.09907,1820.4,1820.3,1.435]
[1743279126830,1.09903,1820.5,1820.3,4.6428]
[1743279127027,2.53533,1820.5,1820.3,1.435]
[1743279127330,1.4363,1820.5,1820.3,1.435]
[1743279127531,2.53536,1820.5,1820.3,1.435]
[1743279127735,1.4363,1820.5,1820.3,1.435]
[1743279127935,1.09907,1820.4,1820.3,1.435]
[1743279128435,2.53535,1820.5,1820.3,1.435]
[1743279128938,1.09907,1820.4,1820.3,1.435]
[1743279129327,1.09913,1820.3,1820.2,0.00824448]
[1743279129636,4.6441,1820.5,1820.2,5.19924448]
[1743279129828,1.09909,1820.4,1820.2,6.29841448]
[1743279130030,2.5232,1820.4,1820.2,5.19924448]
[1743279130229,2.5232,1820.4,1820.2,6.29842448]
[1743279130440,2.5232,1820.4,1820.2,5.19924448]
[1743279130736,2.5232,1820.4,1820.2,6.29842448]
[1743279131838,1.4241,1820.4,1820.2,6.29842448]
[1743279132138,2.52317,1820.4,1820.2,6.29842448]
[1743279134034,6.9898,1820.3,1819.5,3.2078]
[1743279134235,1.09937,1819.9,1819.8,1.3627]
[1743279134636,1.4354,1820.0,1819.8,1.3627]
[1743279134833,2.53476,1820.0,1819.8,1.3627]
[1743279135138,1.4354,1820.0,1819.8,1.3627]
[1743279135640,1.09937,1819.9,1819.8,1.3627]
[1743279137940,1.4354,1820.0,1819.8,1.3627]
[1743279138133,2.53473,1820.0,1819.8,2.4621]
[1743279138333,1.09937,1819.9,1819.8,1.3627]
[1743279138533,2.48907,1819.9,1819.8,1.3627]
[1743279139653,1.09937,1819.9,1819.8,1.3627]
[1743279140449,1.09937,1819.9,1819.8,2.46213]
[1743279140740,1.09937,1819.9,1819.8,1.3627]
[1743279141343,1.09937,1819.9,1819.8,2.46213]
[1743279141940,1.09937,1819.9,1819.8,1.3627]
[1743279142143,1.09937,1819.9,1819.8,2.46213]
[1743279142344,1.40974448,1820.1,1819.8,1.3627]
[1743279142545,0.00824448,1820.1,1820.0,1.09931]
[1743279142736,1.10749448,1820.1,1820.0,4.4506]
[1743279142936,1.10749448,1820.1,1820.0,5.8662]
[1743279143235,1.10749448,1820.1,1820.0,6.96551]
[1743279143742,0.00824448,1820.1,1820.0,5.8662]
[1743279144035,0.00824448,1820.1,1820.0,6.96551]
[1743279144237,1.09906,1820.5,1820.0,12.67331]
[1743279144442,1.09899,1820.6,1820.4,1.09904]
[1743279144637,1.09901,1820.6,1820.5,1.4156]
[1743279145037,2.49501,1820.6,1820.5,2.51461]
[1743279145436,3.2078,1820.7,1820.5,2.51461]
[1743279145437,3.21604448,1820.7,1820.5,1.4156]
[1743279145637,1.09895,1820.6,1820.5,1.4156]
[1743279145845,2.49495,1820.6,1820.5,1.4156]
[1743279146542,0.00824448,1820.7,1820.6,1.09895]
[1743279147440,0.00824448,1820.7,1820.6,1.84805]
[1743279150853,0.00824448,1820.7,1820.6,4.85995]
[1743279151045,1.38084448,1820.7,1820.6,4.85995]
[1743279151246,2.47973448,1820.7,1820.6,3.761]
[1743279151757,1.09895,1820.6,1820.4,1.09902]
[1743279151943,1.3726,1820.5,1820.4,6.36412]
[1743279158154,1.3726,1820.5,1820.4,6.36412]
[1743279158653,1.3726,1820.5,1820.3,52.57809]
[1743279158854,1.09913,1820.3,1820.2,3.2078]
[1743279159454,2.55943,1820.3,1820.2,3.2078]
[1743279159655,1.09927,1820.1,1820.0,3.744]
[1743279159857,1.09927,1820.1,1820.0,4.84331]
[1743279160057,1.09923,1820.2,1820.1,1.09925]
[1743279160354,2.55953,1820.2,1820.1,1.09925]
[1743279160953,1.4603,1820.2,1820.1,1.09925]
[1743279161250,1.4603,1820.2,1820.1,2.52455]
[1743279162158,2.55949,1820.2,1820.1,1.4253]
[1743279162552,2.55949,1820.2,1820.1,2.52455]
[1743279163756,2.55949,1820.2,1820.1,1.4253]
[1743279163954,2.55949,1820.2,1820.0,4.84327]
[1743279164159,1.09925,1820.1,1820.0,4.84327]
[1743279164359,2.52445,1820.1,1820.0,6.29737]
[1743279165359,2.52445,1820.1,1819.9,4.30716]
[1743279165560,1.09942,1819.9,1819.7,1.10769448]
[1743279165753,1.4252,1819.8,1819.7,2.56179448]
[1743279165951,1.4252,1819.8,1819.7,6.29079448]
[1743279166359,2.52463,1819.8,1819.7,5.19134448]
[1743279166554,2.52463,1819.8,1819.7,3.73724448]
[1743279167155,2.52463,1819.8,1819.7,0.00824448]
[1743279170565,1.09962,1819.5,1819.4,3.2078]
[1743279170863,1.09979,1819.3,1819.1,1.78284]
[1743279171067,1.09979,1819.3,1819.1,6.89644]
[1743279171259,1.09979,1819.3,1819.2,1.3896]
[1743279171859,1.09979,1819.3,1819.2,2.4894]
[1743279172068,1.09974,1819.3,1819.2,2.48936]
[1743279173163,1.09974,1819.3,1819.2,1.3896]
[1743279176165,1.0998,1819.2,1819.1,0.00824448]
[1743279179274,1.0998,1819.2,1819.1,1.48824448]
[1743279180180,0.00824448,1819.4,1819.3,1.09974]
[1743279180566,0.00824448,1819.4,1819.3,2.47664]
[1743279181373,3.2078,1820.0,1819.3,4.5847]
[1743279181572,1.0995,1819.7,1819.5,1.09957]
[1743279181770,4.30727,1819.8,1819.6,2.47644]
[1743279181966,4.30727,1819.8,1819.7,1.3769]
[1743279182163,1.09947,1819.8,1819.7,1.3769]
[1743279182761,1.10765448,1819.9,1819.7,2.47638]
[1743279183366,1.09943,1819.8,1819.7,1.3769]
[1743279183565,12.7918,1819.8,1818.5,3.2078]
[1743279183876,12.7918,1819.8,1818.4,2.54995]
[1743279183877,1.10013,1818.7,1818.4,2.54995]
[1743279184277,1.10007,1818.8,1818.4,1.4497]
[1743279184573,3.2078,1818.9,1818.4,1.4497]
[1743279184574,1.10012,1818.7,1818.4,2.54995]
[1743279184779,1.10012,1818.7,1818.4,2.55819448]
[1743279185475,1.10017,1818.6,1818.4,1.45794448]
[1743279185676,0.00824448,1818.8,1818.4,1.45794448]
[1743279185869,1.10831448,1818.8,1818.5,1.10017]
[1743279186071,1.10831448,1818.8,1818.6,1.4032]
[1743279186272,0.00824448,1818.8,1818.6,1.4032]
[1743279186474,1.1001,1818.7,1818.6,1.4032]
[1743279189079,0.00824448,1818.8,1818.6,1.4032]
[1743279189080,0.00824448,1818.8,1818.7,1.1001]
[1743279189273,0.00824448,1818.8,1818.7,8.0419]
[1743279189482,3.9576,1819.4,1818.7,6.9418]
[1743279189673,1.09982,1819.2,1818.9,1.09992]
[1743279189978,1.09982,1819.2,1819.0,3.23252]
[1743279190167,1.3734,1819.3,1819.0,3.23252]
[1743279190168,2.47318,1819.3,1819.1,1.09983]
[1743279190373,1.09953,1819.7,1819.5,1.0996]
[1743279190573,1.09949,1819.7,1819.6,1.4394]
[1743279190778,4.30729,1819.7,1819.6,1.4394]
[1743279191684,1.09956,1819.6,1819.5,0.00824448]
[1743279191873,2.51676,1819.6,1819.5,0.00824448]
[1743279192582,1.0998,1819.2,1819.1,3.741]
[1743279192875,6.66624,1819.6,1819.2,1.09978]
[1743279192876,4.30751,1819.4,1819.2,1.09978]
[1743279193075,3.2078,1819.4,1819.3,2.49704]
[1743279193677,1.09965,1819.5,1819.3,2.49704]
[1743279193978,2.51678,1819.6,1819.4,2.49694]
[1743279194176,0.00824448,1819.8,1819.4,1.3973]
[1743279194376,1.09956,1819.6,1819.5,0.7507]
[1743279194674,1.09956,1819.6,1819.5,2.148]
[1743279197077,4.30736,1819.6,1819.5,2.148]
[1743279197989,1.09962,1819.5,1819.4,3.742]
[1743279198182,1.09962,1819.5,1819.4,5.1623]
[1743279199975,1.09962,1819.5,1819.4,6.26198]
[1743279200584,1.09962,1819.5,1819.4,5.1623]
[1743279201182,1.09962,1819.5,1819.4,6.26198]
[1743279201581,1.09962,1819.5,1819.4,5.1623]
[1743279204387,1.3915,1819.6,1819.4,6.26198]
[1743279204593,3.21604448,1819.8,1819.5,3.2078]
[1743279204594,0.00824448,1819.8,1819.5,3.2078]
[1743279204886,0.00824448,1819.8,1819.7,1.09949]
[1743279205074,5.874,1820.6,1819.8,2.74859]
[1743279205278,1.09901,1820.5,1820.3,1.09912]
[1743279205481,2.57471,1820.5,1820.4,1.4938]
[1743279205680,1.09925,1820.1,1820.0,0.6895]
[1743279205889,1.09925,1820.1,1820.0,2.1833]
[1743279206187,1.09942,1819.9,1819.7,3.727]
[1743279206380,1.09942,1819.9,1819.8,1.4938]
[1743279207488,1.09942,1819.9,1819.7,3.727]
[1743279207679,2.46563,1819.8,1819.7,3.727]
[1743279207881,2.46563,1819.8,1819.6,3.20978448]
[1743279208385,2.46563,1819.8,1819.7,1.4125]
[1743279210779,2.46563,1819.8,1819.6,1.79728448]
[1743279210780,1.09949,1819.7,1819.6,0.69774448]
[1743279210981,2.46859,1819.7,1819.6,0.69774448]
[1743279211182,1.3691,1819.7,1819.6,1.79730448]
[1743279211382,2.46859,1819.7,1819.6,0.69774448]
[1743279211577,2.46859,1819.7,1819.6,1.79730448]
[1743279211578,1.3691,1819.7,1819.6,1.79730448]
[1743279212088,2.46859,1819.7,1819.6,2.16444448]
[1743279212290,0.6827,1820.0,1819.6,2.16444448]
[1743279212291,1.09943,1819.9,1819.6,2.16444448]
[1743279212489,1.09943,1819.8,1819.7,1.4667]
[1743279212988,12.091,1819.8,1818.4,0.5496]
[1743279213179,3.2078,1819.0,1818.6,1.10012]
[1743279213387,4.6018,1818.9,1818.7,1.4938]
[1743279213586,1.10004,1818.8,1818.7,1.4938]
[1743279213787,2.49404,1818.8,1818.7,1.4938]
[1743279216490,1.1001,1818.7,1818.6,0.00824448]
[1743279216797,2.5907,1818.7,1818.6,1.45024448]
[1743279216987,1.4906,1818.7,1818.6,2.55040448]
[1743279217188,2.5907,1818.7,1818.6,1.45024448]
[1743279220492,3.21604448,1818.9,1818.6,1.45024448]
[1743279220493,1.10007,1818.8,1818.6,1.45024448]
[1743279220688,1.10007,1818.8,1818.7,0.7196]
[1743279220899,2.46287,1818.8,1818.7,0.7196]
[1743279221593,0.00824448,1818.9,1818.7,0.7196]
[1743279221794,0.00824448,1818.9,1818.8,2.55674]
[1743279223091,3.8937,1819.5,1819.2,1.09976]
[1743279223290,1.0997,1819.4,1819.2,1.09976]
[1743279223499,1.0997,1819.4,1819.3,1.3723]
[1743279224196,2.5275,1819.4,1819.3,1.3723]
[1743279224593,3.21604448,1819.5,1819.3,1.3723]
[1743279224899,1.09968,1819.4,1819.3,1.3723]
[1743279225593,2.58758,1819.4,1819.3,1.3723]
[1743279225999,2.58758,1819.4,1819.2,0.7401]
[1743279226000,1.09974,1819.3,1819.2,0.7401]
[1743279226191,1.09974,1819.3,1819.1,5.2161]
[1743279226192,1.0998,1819.2,1819.1,5.2161]
[1743279226392,2.58767,1819.3,1819.1,6.3159]
[1743279226703,2.58767,1819.3,1819.2,1.4701]
[1743279228899,2.58767,1819.3,1819.0,4.30768]
[1743279228900,1.4879,1819.3,1819.0,3.2078]
[1743279229201,1.09986,1819.1,1819.0,4.6321]
[1743279231703,4.30766,1819.1,1819.0,1.4243]
[1743279232304,1.09986,1819.1,1819.0,1.4243]
[1743279232902,4.30766,1819.1,1819.0,1.4243]
[1743279233306,1.10004,1818.8,1818.7,3.9328]
[1743279233504,1.10004,1818.8,1818.7,5.0329]
[1743279233705,1.10004,1818.8,1818.7,3.9328]
[1743279234097,1.10004,1818.8,1818.7,3.2078]
[1743279234813,1.10004,1818.8,1818.7,4.6701]
[1743279235100,1.10004,1818.8,1818.7,3.2078]
[1743279236105,4.91122,1819.0,1818.6,3.74024448]
[1743279236106,1.1001,1818.7,1818.6,3.74024448]
[1743279236401,2.585,1818.7,1818.6,0.00824448]
[1743279242127,0.6955,1819.0,1818.6,0.00824448]
[1743279242322,3.2078,1819.3,1818.6,6.01534448]
[1743279242528,1.09988,1819.1,1818.7,2.75026]
[1743279242721,1.09988,1819.1,1818.9,1.09998]
[1743279243026,1.09988,1819.1,1819.0,2.082]
[1743279243227,1.4374,1819.2,1819.0,3.18187]
[1743279243528,2.53724,1819.2,1819.0,3.18187]
[1743279243730,1.09986,1819.1,1819.0,2.082]
[1743279244327,1.09986,1819.1,1819.0,1.3924]
[1743279245324,1.4374,1819.2,1819.0,1.3924]
[1743279245522,1.4374,1819.2,1819.1,1.09986]
[1743279245727,2.5372,1819.2,1819.1,0.723]
[1743279246327,2.5372,1819.2,1819.1,1.82286]
[1743279246628,2.5372,1819.2,1819.1,0.723]
[1743279248631,1.4374,1819.2,1819.1,1.82286]
[1743279249328,2.5372,1819.2,1819.1,0.723]
[1743279250425,2.5372,1819.2,1819.1,1.82286]
[1743279252826,2.5372,1819.2,1819.1,0.723]
[1743279253031,1.09998,1818.9,1818.8,3.2078]
[1743279253226,1.09998,1818.9,1818.8,4.6019]
[1743279254526,3.2078,1818.9,1818.6,0.00824448]
[1743279254832,1.1001,1818.7,1818.6,0.00824448]
[1743279255225,2.575,1818.7,1818.6,0.00824448]
[1743279257731,5.7828,1818.7,1818.6,0.00824448]
[1743279258938,5.7828,1818.7,1818.6,4.48e-06]
[1743279263939,1.10052,1818.0,1817.9,0.7248]
[1743279264132,1.10052,1818.0,1817.9,2.2213]
[1743279265225,1.10052,1818.0,1817.9,1.4965]
[1743279265433,2.52712,1818.0,1817.9,1.4965]
[1743279266033,1.10058,1817.9,1817.8,0.70214448]
[1743279266235,2.52718,1817.9,1817.8,2.18564448]
[1743279267737,5.73498,1817.9,1817.8,2.18564448]
[1743279267936,2.52718,1817.9,1817.8,2.18564448]
[1743279270844,5.73498,1817.9,1817.8,2.18564448]
[1743279271038,2.52718,1817.9,1817.8,2.18564448]
[1743279271732,2.52718,1817.9,1817.8,1.49174448]
[1743279273742,5.73498,1817.9,1817.8,1.49174448]
[1743279276440,5.73498,1817.9,1817.8,0.00824448]
[1743279277547,8.23498,1817.9,1817.8,4.48e-06]
[1743279277946,2.75177,1817.7,1817.0,0.7148]
[1743279278239,1.10107,1817.1,1817.0,1.383]
[1743279279741,1.4418,1817.2,1816.9,3.92894448]
[1743279279742,1.10113,1817.0,1816.9,3.92894448]
[1743279279940,1.10113,1817.0,1816.9,0.72114448]
[1743279280343,2.53293,1817.0,1816.9,0.72114448]
[1743279281044,2.55951007,1817.0,1816.9,0.72114448]
[1743279281845,2.55951007,1817.0,1816.9,0.00824448]
[1743279282245,2.58609168,1817.0,1816.9,0.00824448]
[1743279283241,2.61267344,1817.0,1816.9,0.00824448]
[1743279284248,2.63925523,1817.0,1816.9,0.00824448]
[1743279284444,0.00824448,1817.1,1816.9,0.00824448]
[1743279284655,5.95991,1817.5,1816.9,1.44264448]
[1743279284845,5.95991,1817.5,1816.9,2.54379448]
[1743279284846,1.10107,1817.1,1816.9,2.54379448]
[1743279285245,1.10107,1817.1,1817.0,1.10113]
[1743279285446,0.02664061,1817.1,1817.0,2.53553]
[1743279285648,0.02664061,1817.1,1817.0,5.74333]
[1743279285846,0.05328122,1817.1,1817.0,5.74333]
[1743279286544,0.07992183,1817.1,1817.0,5.74333]
[1743279286942,1.10925448,1817.2,1817.1,1.10107]
[1743279287154,0.10656244,1817.1,1817.0,4.6422]
[1743279287449,0.10656244,1817.1,1817.0,5.74327]
[1743279287952,0.13320305,1817.1,1817.0,6.45057]
[1743279288153,0.00824448,1817.2,1817.1,1.10107]
[1743279288752,1.10925448,1817.2,1817.0,6.45057]
[1743279288955,1.10926448,1817.2,1817.0,6.4506]
[1743279289150,1.10107,1817.1,1817.0,5.3495]
[1743279289352,1.10929448,1817.2,1817.0,6.45063]
[1743279289549,1.10107,1817.1,1817.0,6.45063]
[1743279290950,1.12766526,1817.1,1817.0,6.45063]
[1743279291550,1.15426056,1817.1,1817.0,6.45063]
[1743279291761,0.05319056,1817.1,1817.0,6.45063]
[1743279292060,0.07978594,1817.1,1817.0,6.45063]
[1743279292458,1.18085594,1817.1,1817.0,6.45063]
[1743279293456,1.18085594,1817.1,1817.0,5.3495]
[1743279293857,5.83995594,1817.1,1817.0,1.4344]
[1743279294059,5.76017,1817.1,1817.0,1.4344]
[1743279294257,5.86658107,1817.1,1817.0,1.4344]
[1743279294456,1.10113,1817.0,1816.9,0.00824448]
[1743279294756,2.55243,1817.0,1816.9,0.00824448]
[1743279295358,2.68546631,1817.0,1816.9,0.00824448]
[1743279296561,2.76419912,1817.0,1816.9,0.00824448]
[1743279297257,2.79080073,1817.0,1816.9,0.00824448]
[1743279298464,2.81740245,1817.0,1816.9,0.00824448]
[1743279299660,2.84400425,1817.0,1816.9,0.00824448]
[1743279299862,2.84400425,1817.0,1816.9,1.50054448]
[1743279301055,2.9227279,1817.0,1816.9,1.50054448]
[1743279301864,3.00145155,1817.0,1816.9,1.50054448]
[1743279302066,3.00145155,1817.0,1816.9,0.00824448]
[1743279302560,0.5277452,1817.0,1816.9,0.00824448]
[1743279302764,1.6288752,1817.0,1816.9,1.39494448]
[1743279303363,1.6288752,1817.0,1816.9,2.14634448]
[1743279304064,1.65552246,1817.0,1816.9,2.14634448]
[1743279304668,1.68215947,1817.0,1816.9,2.14634448]
[1743279305066,1.70880676,1817.0,1816.9,2.14634448]
[1743279305470,1.10113,1817.0,1816.9,2.14634448]
[1743279305665,0.63432409,1817.0,1816.9,3.24753448]
[1743279306170,1.76210146,1817.0,1816.9,3.24753448]
[1743279306570,1.76210146,1817.0,1816.9,2.14634448]
[1743279306871,1.78874887,1817.0,1816.9,2.14634448]
[1743279307264,1.10113,1817.0,1816.9,2.14634448]
[1743279307563,1.81539631,1817.0,1816.9,2.14634448]
[1743279307764,1.84204379,1817.0,1816.9,2.14634448]
[1743279308473,1.86869131,1817.0,1816.9,2.14634448]
[1743279309071,1.8953389,1817.0,1816.9,2.14634448]
[1743279311480,1.93784336,1817.0,1816.9,2.14634448]
[1743279311977,1.93784336,1817.0,1816.9,0.00824448]
[1743279313381,0.83671336,1817.0,1816.9,3.60943448]
[1743279313581,0.00824448,1817.2,1817.1,1.10107]
[1743279313783,1.10107,1817.1,1817.0,1.4611]
[1743279314177,2.60096836,1817.1,1817.0,1.4611]
[1743279314373,2.62781829,1817.1,1817.0,1.4611]
[1743279315584,2.65466822,1817.1,1817.0,1.4611]
[1743279315984,1.16886822,1817.1,1817.0,1.4611]
[1743279316183,2.65466822,1817.1,1817.0,1.4611]
[1743279316880,2.67360961,1817.1,1817.0,1.4611]
[1743279318585,1.10113,1817.0,1816.9,0.00824448]
[1743279318888,2.61526961,1817.0,1816.9,0.00824448]
[1743279319083,2.62374816,1817.0,1816.9,0.00824448]
[1743279324588,2.65057566,1817.0,1816.9,0.00824448]
[1743279325185,2.67740316,1817.0,1816.9,0.00824448]
[1743279325786,2.69851165,1817.0,1816.9,0.00824448]
[1743279331502,2.725283,1817.0,1816.9,0.00824448]
[1743279332091,2.75205443,1817.0,1816.9,0.00824448]
[1743279332298,5.95985443,1817.0,1816.9,0.00824448]
[1743279333698,5.98107514,1817.0,1816.9,0.00824448]
[1743279336995,9.68707514,1817.0,1816.9,4.48e-06]
[1743279338099,5.98107514,1817.0,1816.9,4.48e-06]
[1743279339800,6.00792351,1817.0,1816.9,4.48e-06]
[1743279340407,6.03477188,1817.0,1816.9,4.48e-06]
[1743279341093,6.05583863,1817.0,1816.9,4.48e-06]
[1743279346505,6.08267804,1817.0,1816.9,4.48e-06]
[1743279347706,6.10951745,1817.0,1816.9,4.48e-06]
[1743279348301,9.81551745,1817.0,1816.9,4.48e-06]
[1743279348598,9.44233,1817.0,1816.9,4.48e-06]
[1743279348804,9.83660212,1817.0,1816.9,4.48e-06]
[1743279354306,9.86334327,1817.0,1816.9,4.48e-06]
[1743279355505,9.89008461,1817.0,1816.9,4.48e-06]
[1743279356012,18.26408461,1817.0,1816.9,4.48e-06]
[1743279356412,1.10149,1816.4,1816.3,0.7512]
[1743279356714,1.10149,1816.4,1816.3,2.1912]
[1743279357215,1.10155,1816.3,1816.2,0.7008]
[1743279357512,2.98518561,1816.3,1816.2,0.7008]
[1743279357809,1.10161,1816.2,1816.1,0.00824448]
[1743279358109,5.72401,1816.2,1816.1,1.44824448]
[1743279358507,0.00824448,1817.2,1816.1,25.68763307]
[1743279358707,3.2078,1817.6,1817.0,3.2078]
[1743279359011,1.10107,1817.1,1817.0,6.9528]
[1743279359217,3.2078,1817.4,1816.8,6.9528]
[1743279359218,5.96014,1817.4,1816.8,6.9528]
[1743279359511,1.10115,1817.0,1816.7,3.2078]
[1743279359710,2.2413,1817.3,1816.7,3.2078]
[1743279359711,1.10125,1816.8,1816.7,3.2078]
[1743279359907,1.10125,1816.8,1816.7,3.21604448]
[1743279360209,1.10123,1816.9,1816.7,0.00824448]
[1743279360603,1.4874,1816.9,1816.7,3.21604448]
[1743279361007,1.4874,1816.9,1816.7,3.73396369]
[1743279361611,0.00824448,1817.0,1816.8,1.98800257]
[1743279361913,0.00824448,1817.0,1816.9,2.57129]
[1743279362117,0.08301767,1817.0,1816.9,3.08919257]
[1743279362306,0.08301767,1817.0,1816.9,1.4701]
[1743279362511,0.08301767,1817.0,1816.9,1.98800257]
[1743279362707,0.08301767,1817.0,1816.9,3.08919257]
[1743279362912,0.08301767,1817.0,1816.9,2.57129]
[1743279363114,0.08301767,1817.0,1816.9,1.98800257]
[1743279363417,0.08301767,1817.0,1816.9,3.08919257]
[1743279363612,0.08301767,1817.0,1816.9,2.57129]
[1743279363809,0.08301767,1817.0,1816.9,1.98800257]
[1743279364411,0.08301767,1817.0,1816.9,3.08919257]
[1743279364609,0.08301767,1817.0,1816.9,2.57129]
[1743279364810,0.08301767,1817.0,1816.9,3.08919257]
[1743279365015,0.08301767,1817.0,1816.9,1.4701]
[1743279365212,0.08301767,1817.0,1816.9,1.98800257]
[1743279365415,0.08301767,1817.0,1816.9,2.57129]
[1743279365917,0.08301767,1817.0,1816.9,3.08919257]
[1743279366117,0.08301767,1817.0,1816.9,2.57129]
[1743279366910,0.08301767,1817.0,1816.9,3.08919257]
[1743279367106,0.08301767,1817.0,1816.9,5.77909]
[1743279367319,0.08301767,1817.0,1816.9,6.29699257]
[1743279367507,4.30865,1817.5,1817.3,1.10093]
[1743279367712,4.30865,1817.5,1817.4,2.58323013]
[1743279367713,1.4125,1817.5,1817.4,2.58323013]
[1743279367920,23.36405182,1817.6,1817.4,2.58323013]
[1743279368211,24.46486182,1817.6,1817.4,1.48234013]
[1743279368418,1.46050362,1817.5,1817.4,1.48234013]
[1743279368609,1.46050362,1817.5,1817.4,2.58323013]
[1743279368814,0.04800362,1817.5,1817.4,2.58323013]
[1743279370823,0.04800362,1817.5,1817.4,3.29293013]
[1743279372116,23.36405182,1818.1,1817.8,1.10059]
[1743279372315,1.4048,1817.9,1817.7,3.2078]
[1743279372510,1.10077,1817.6,1817.5,3.2078]
[1743279372823,1.10093,1817.4,1817.3,3.2078]
[1743279373321,1.10093,1817.4,1817.2,0.74854448]
[1743279373623,2.50575,1817.3,1817.2,0.74854448]
[1743279373823,1.4048,1817.3,1817.2,1.84955448]
[1743279374015,1.47956349,1817.3,1817.2,1.84955448]
[1743279374523,0.07476349,1817.3,1817.2,1.84955448]
[1743279375726,6.9508,1818.2,1817.8,1.10061]
[1743279375928,1.3992,1817.9,1817.7,4.30847]
[1743279376229,2.49978,1817.9,1817.7,4.30847]
[1743279376725,1.3992,1817.9,1817.6,0.7242]
[1743279376923,1.1007,1817.7,1817.6,0.7242]
[1743279377225,1.10077,1817.6,1817.5,6.9518]
[1743279377421,1.10073,1817.7,1817.5,8.0526]
[1743279377622,1.10073,1817.7,1817.5,6.9518]
[1743279377822,1.3739,1817.6,1817.5,8.05263]
[1743279379631,1.40065064,1817.6,1817.5,8.05263]
[1743279380027,1.44866758,1817.6,1817.5,8.05263]
[1743279382527,0.07476758,1817.6,1817.5,8.05263]
[1743279385032,0.7442,1818.1,1818.0,1.10052]
[1743279385033,2.1983,1818.1,1818.0,1.10052]
[1743279385238,1.4541,1818.1,1818.0,4.30832]
[1743279385935,1.52886758,1818.1,1818.0,4.30832]
[1743279386533,2.62932758,1818.1,1818.0,3.2078]
[1743279386736,2.62932758,1818.1,1817.8,7.6598]
[1743279386737,1.10052,1818.0,1817.8,7.6598]
[1743279386939,1.10052,1818.0,1817.8,3.2078]
[1743279386940,1.4137,1818.0,1817.8,3.2078]
[1743279387134,0.7331,1817.9,1817.8,4.30843]
[1743279387536,2.1468,1817.9,1817.8,4.30843]
[1743279387738,2.22156758,1817.9,1817.8,4.30843]
[1743279389339,2.22156758,1817.9,1817.8,5.80153]
[1743279391635,2.1468,1817.9,1817.8,5.80153]
[1743279391836,2.29633107,1817.9,1817.8,5.80153]
[1743279394341,3.39691107,1817.9,1817.8,3.2078]
[1743279394551,1.10083,1817.5,1817.4,6.9208]
[1743279394842,1.25036107,1817.5,1817.4,3.2078]
[1743279395446,1.10091,1817.4,1817.2,8.03103448]
[1743279395747,0.14953107,1817.3,1817.2,8.03103448]
[1743279396248,1.59843107,1817.3,1817.2,8.03103448]
[1743279396543,2.69938107,1817.3,1817.2,0.00824448]
[1743279397347,2.7262103,1817.3,1817.2,0.00824448]
[1743279397550,1.10113,1817.0,1816.9,3.714]
[1743279397757,1.10119,1816.9,1816.8,3.72421069]
[1743279397938,2.55009,1816.9,1816.8,3.72421069]
[1743279398137,1.4489,1816.9,1816.8,3.72421069]
[1743279398839,1.67319865,1816.9,1816.8,3.72421069]
[1743279399044,2.77438865,1816.9,1816.8,3.72421069]
[1743279399247,2.77438865,1816.9,1816.8,3.2078]
[1743279399848,1.10125,1816.8,1816.7,1.49134448]
[1743279400050,2.55665,1816.8,1816.7,1.49134448]
[1743279400954,2.78094865,1816.8,1816.7,1.49134448]
[1743279403247,2.55665,1816.8,1816.7,1.49134448]
[1743279403455,2.85571623,1816.8,1816.7,1.49134448]
[1743279404841,2.85571623,1816.8,1816.7,4.69914448]
[1743279407755,2.85571623,1816.8,1816.7,3.21604448]
[1743279408953,2.882542,1816.8,1816.7,3.21604448]
[1743279409154,2.90118433,1816.8,1816.7,3.21604448]
[1743279417853,1.79993433,1816.8,1816.7,4.31735448]
[1743279418159,0.00824448,1817.0,1816.9,1.10119]
[1743279418357,0.00824448,1817.0,1816.9,8.01399]
[1743279418852,1.10937448,1817.0,1816.9,6.9128]
[1743279419358,1.10125,1816.8,1816.7,6.92104448]
[1743279419958,2.57025,1816.8,1816.7,6.92104448]